bitfinex/quotes_SOLUSD_20250401
["timestamp","ask_amount","ask_price","bid_price","bid_amount"]
[1743512165908,35.82319411,127.23,127.16,38.39792123]
[1743512167191,0.03,127.26,127.19,20.0]
[1743512167503,0.03,127.26,127.2,6.86]
[1743512167678,15.58614525,127.26,127.19,20.0]
[1743512167884,15.58614525,127.26,127.2,6.86]
[1743512167885,7.41382211,127.25,127.2,6.86]
[1743512169392,7.41382211,127.25,127.2,14.7213]
[1743512169600,15.27232211,127.25,127.2,14.7213]
[1743512171294,15.30232211,127.25,127.2,14.7213]
[1743512172699,15.27312211,127.24,127.2,7.8613]
[1743512172883,7.41382211,127.22,127.19,6.923]
[1743512173087,26.34779411,127.2,127.19,0.063]
[1743512174596,7.69814525,127.2,127.19,0.063]
[1743512174800,81.7,127.21,127.19,0.063]
[1743512178403,81.7,127.21,127.19,0.063]
[1743512178696,89.561,127.21,127.19,0.063]
[1743512190912,81.7,127.21,127.19,0.063]
[1743512195016,89.561,127.21,127.19,0.063]
[1743512195225,96.97482211,127.21,127.19,0.063]
[1743512203302,7.41382211,127.2,127.19,0.063]
[1743512203504,96.97482211,127.21,127.19,0.063]
[1743512222133,89.561,127.21,127.19,0.063]
[1743512226436,18.933972,127.2,127.19,0.063]
[1743512226625,26.34779411,127.2,127.19,0.063]
[1743512227452,34.20939411,127.2,127.19,0.063]
[1743512232627,18.933972,127.2,127.19,0.063]
[1743512232822,26.795572,127.2,127.19,0.063]
[1743512236353,34.20939411,127.2,127.19,0.063]
[1743512238543,26.795572,127.2,127.19,0.063]
[1743512252733,89.5612,127.21,127.19,0.063]
[1743512255161,7.8603,127.22,127.19,0.063]
[1743512256856,0.03,127.25,127.2,27.6169]
[1743512257054,0.03,127.25,127.21,6.86]
[1743512257360,0.03,127.25,127.22,7.8603]
[1743512258137,0.03,127.25,127.22,27.5112]
[1743512258551,0.03,127.25,127.24,20.0]
[1743512259162,0.03,127.25,127.24,29.5022]
[1743512261661,0.03,127.25,127.23,7.8596]
[1743512261866,0.03,127.25,127.23,6.86]
[1743512262865,0.03,127.25,127.23,14.7196]
[1743512263750,0.03,127.26,127.25,20.0]
[1743512264268,0.03,127.26,127.23,34.369]
[1743512264269,0.03,127.26,127.23,14.7196]
[1743512265452,0.03,127.26,127.25,20.0]
[1743512267092,0.03,127.26,127.25,27.684]
[1743512267251,2.8472716,127.29,127.25,55.1888]
[1743512267849,26.37779411,127.35,127.25,61.57948064]
[1743512267850,0.03,127.35,127.25,61.57948064]
[1743512268154,0.03,127.35,127.28,20.0]
[1743512268348,0.03,127.35,127.29,6.86]
[1743512269259,0.03,127.35,127.3,7.8554]
[1743512269652,0.03,127.35,127.3,27.494]
[1743512269856,0.03,127.35,127.3,7.8554]
[1743512270052,7.44382211,127.35,127.3,7.8554]
[1743512270363,0.03,127.35,127.3,7.8554]
[1743512271373,7.41382211,127.33,127.25,17.63701163]
[1743512271570,7.69814525,127.32,127.26,14.7179]
[1743512271771,0.28432314,127.32,127.26,7.8579]
[1743512271972,0.28432314,127.32,127.26,14.7179]
[1743512275176,8.13882314,127.32,127.26,14.7179]
[1743512275555,0.28432314,127.32,127.26,14.7179]
[1743512276875,8.13862314,127.32,127.26,14.7179]
[1743512277785,7.8543,127.32,127.26,14.7179]
[1743512279594,15.26812211,127.32,127.26,6.86]
[1743512279875,18.933972,127.31,127.26,6.86]
[1743512281062,18.933972,127.29,127.22,17.59811163]
[1743512281376,26.34779411,127.29,127.23,6.86]
[1743512282359,7.8566,127.28,127.23,6.86]
[1743512282763,7.8566,127.28,127.23,14.7197]
[1743512283963,7.8566,127.28,127.23,6.86]
[1743512284286,7.8566,127.28,127.23,14.7196]
[1743512290892,26.820172,127.29,127.23,14.7196]
[1743512292188,34.23399411,127.29,127.23,14.7196]
[1743512292574,7.41382211,127.28,127.23,6.86]
[1743512292769,7.41382211,127.25,127.2,6.86]
[1743512292974,0.28432314,127.24,127.2,6.86]
[1743512293692,0.28432314,127.24,127.19,7.9249]
[1743512294195,18.64964886,127.23,127.19,7.9249]
[1743512295890,26.06347097,127.23,127.19,0.063]
[1743512296273,7.8603,127.22,127.19,0.063]
[1743512306085,0.14216157,127.24,127.19,0.063]
[1743512306286,18.64964886,127.24,127.19,0.063]
[1743512306908,18.64964886,127.21,127.19,0.063]
[1743512308888,26.51114886,127.21,127.19,0.063]
[1743512320705,33.92497097,127.21,127.19,0.063]
[1743512321817,26.51114886,127.21,127.19,0.063]
[1743512322128,7.8607,127.22,127.19,0.063]
[1743512323122,26.51094886,127.21,127.19,0.063]
[1743512323703,33.92477097,127.21,127.19,0.063]
[1743512325522,26.06347097,127.2,127.19,0.063]
[1743512326235,33.92507097,127.2,127.19,0.063]
[1743512326522,26.51124886,127.2,127.19,0.063]
[1743512327141,34.20939411,127.2,127.19,0.063]
[1743512327807,0.28432314,127.18,127.13,6.923]
[1743512328010,7.41382211,127.17,127.13,6.923]
[1743512328511,26.51374886,127.16,127.13,0.063]
[1743512328818,0.28432314,127.15,127.13,0.063]
[1743512329025,7.41382211,127.14,127.13,0.063]
[1743512329202,7.69814525,127.14,127.13,0.063]
[1743512330730,15.56344525,127.14,127.13,0.063]
[1743512331530,7.69814525,127.14,127.13,0.063]
[1743512332707,7.41382211,127.15,127.13,0.063]
[1743512332912,0.14216157,127.15,127.13,0.063]
[1743512333310,18.79181043,127.16,127.13,0.063]
[1743512334029,26.20563254,127.16,127.13,0.063]
[1743512335532,7.55598368,127.17,127.13,0.063]
[1743512335728,18.64964886,127.16,127.13,0.063]
[1743512336935,18.79181043,127.2,127.13,0.063]
[1743512337112,34.06733254,127.2,127.13,0.063]
[1743512338335,34.06733254,127.2,127.13,27.5938]
[1743512338537,26.23563254,127.2,127.13,27.5938]
[1743512339836,18.67964886,127.2,127.13,27.5938]
[1743512340135,18.67964886,127.2,127.13,66.9236]
[1743512340332,0.03,127.2,127.16,20.0]
[1743512340538,0.03,127.2,127.17,6.86]
[1743512342435,0.03,127.2,127.18,7.8628]
[1743512345635,0.03,127.2,127.16,8.4393]
[1743512346137,0.03,127.2,127.16,16.3032]
[1743512346636,18.67964886,127.2,127.15,14.7245]
[1743512349539,18.67964886,127.2,127.15,7.8645]
[1743512349735,18.67964886,127.2,127.15,14.7245]
[1743512352440,0.03,127.2,127.15,14.7245]
[1743512352849,0.03,127.2,127.15,34.3863]
[1743512353728,0.03,127.2,127.15,73.7099]
[1743512354543,0.03,127.2,127.15,34.3863]
[1743512354933,0.03,127.2,127.15,14.7245]
[1743512355131,0.03,127.2,127.16,6.86]
[1743512356044,0.03,127.2,127.17,7.8634]
[1743512357334,0.03,127.2,127.16,14.7239]
[1743512359744,0.03,127.2,127.13,66.9224]
[1743512359930,0.03,127.2,127.15,6.86]
[1743512360131,7.44382211,127.2,127.13,27.5932]
[1743512360436,1.5555,127.2,127.14,6.86]
[1743512361440,0.28432314,127.18,127.13,14.7889]
[1743512361930,18.64964886,127.19,127.13,14.7889]
[1743512362464,18.67964886,127.2,127.13,34.4538]
[1743512364028,0.03,127.2,127.16,20.0]
[1743512365848,7.8916,127.2,127.16,27.8639]
[1743512366039,7.8916,127.2,127.14,7.8653]
[1743512369839,7.69814525,127.19,127.13,14.7886]
[1743512370038,18.64964886,127.18,127.13,14.7886]
[1743512370243,26.51254886,127.18,127.13,14.7886]
[1743512370449,18.64964886,127.18,127.13,14.7886]
[1743512370831,0.03,127.2,127.13,34.4535]
[1743512371075,18.67964886,127.2,127.13,34.4535]
[1743512371766,26.54124886,127.2,127.13,34.4535]
[1743512376957,0.03,127.2,127.13,34.4535]
[1743512377147,0.03,127.2,127.16,20.0]
[1743512377347,0.03,127.2,127.17,6.86]
[1743512378941,18.67964886,127.2,127.17,6.86]
[1743512379141,18.67964886,127.2,127.16,20.0]
[1743512379336,18.67964886,127.2,127.16,27.864]
[1743512379737,0.03,127.2,127.16,27.864]
[1743512380143,0.03,127.2,127.16,20.0]
[1743512380343,0.03,127.2,127.16,27.864]
[1743512383166,0.03,127.2,127.16,20.0]
[1743512383363,0.03,127.2,127.13,6.2044]
[1743512383668,7.44382211,127.2,127.14,6.86]
[1743512384878,7.44382211,127.2,127.13,6.923]
[1743512385253,27.5178,127.19,127.13,6.923]
[1743512385969,18.64964886,127.18,127.13,6.923]
[1743512386170,18.64964886,127.18,127.13,26.923]
[1743512387671,7.8634,127.17,127.13,26.923]
[1743512390565,27.5221,127.17,127.13,26.923]
[1743512391067,27.5221,127.17,127.13,20.063]
[1743512391381,34.93592211,127.17,127.13,0.063]
[1743512391554,27.5221,127.17,127.13,0.063]
[1743512393478,7.8634,127.17,127.13,0.063]
[1743512394643,18.64964886,127.18,127.13,0.063]
[1743512394644,26.51264886,127.18,127.13,0.063]
[1743512395255,18.64964886,127.18,127.13,0.063]
[1743512395657,14.3493,127.2,127.13,0.063]
[1743512397766,14.3493,127.2,127.14,7.8649]
[1743512397963,0.03,127.19,127.14,7.8649]
[1743512398751,0.03,127.19,127.13,7.9289]
[1743512400576,0.03,127.19,127.16,20.0]
[1743512400760,0.03,127.19,127.17,7.8634]
[1743512401274,0.03,127.19,127.18,6.86]
[1743512402978,0.03,127.19,127.18,14.7228]
[1743512403873,0.03,127.19,127.18,6.86]
[1743512404461,0.03,127.19,127.14,1.5846]
[1743512404462,0.03,127.19,127.15,7.8647]
[1743512404675,0.03,127.19,127.16,20.0]
[1743512404870,0.03,127.19,127.17,7.8634]
[1743512407986,0.03,127.19,127.15,6.86]
[1743512408186,7.8634,127.17,127.13,0.063]
[1743512408393,18.64964886,127.14,127.13,0.063]
[1743512408587,1.5121,127.15,127.13,0.063]
[1743512408896,1.5121,127.18,127.13,6.923]
[1743512409070,6.5115,127.19,127.13,6.923]
[1743512409071,0.03,127.19,127.13,6.923]
[1743512410590,0.03,127.19,127.14,7.8653]
[1743512410784,0.03,127.19,127.15,6.86]
[1743512412495,0.03,127.19,127.18,20.0]
[1743512412695,0.03,127.19,127.18,27.8628]
[1743512414190,0.03,127.19,127.18,34.7228]
[1743512414497,0.03,127.19,127.18,26.86]
[1743512415301,0.03,127.19,127.18,34.7228]
[1743512415893,0.03,127.19,127.18,26.86]
[1743512418498,0.03,127.19,127.18,6.86]
[1743512418676,0.03,127.19,127.15,6.86]
[1743512419381,0.03,127.19,127.15,14.7246]
[1743512421496,0.03,127.19,127.15,34.3864]
[1743512423688,0.03,127.19,127.18,20.0]
[1743512425596,0.03,127.19,127.18,27.8628]
[1743512430098,0.03,127.2,127.18,27.8628]
[1743512430297,0.03,127.2,127.19,6.86]
[1743512430499,1.6163,127.27,127.19,6.86]
[1743512431000,1.6163,127.27,127.22,20.0]
[1743512431208,1.6163,127.27,127.23,6.86]
[1743512432301,1.6163,127.27,127.24,7.8591]
[1743512432992,1.6163,127.27,127.23,14.7196]
[1743512433399,6.6515,127.28,127.23,14.7196]
[1743512433601,28.19764886,127.29,127.23,14.7196]
[1743512433807,20.34134886,127.29,127.23,14.7196]
[1743512433990,1.6917,127.29,127.23,14.7196]
[1743512434587,0.03,127.29,127.26,20.0]
[1743512435505,0.03,127.27,127.26,20.0]
[1743512436009,0.03,127.27,127.23,14.7196]
[1743512436206,0.03,127.27,127.23,7.8596]
[1743512436397,0.03,127.27,127.24,6.86]
[1743512437706,0.03,127.27,127.23,7.8596]
[1743512438005,0.03,127.27,127.23,14.7196]
[1743512440315,0.03,127.27,127.24,6.86]
[1743512440915,0.03,127.27,127.24,14.7191]
[1743512442401,0.03,127.27,127.24,34.367]
[1743512443114,0.03,127.27,127.24,6.86]
[1743512444009,0.03,127.27,127.24,14.7191]
[1743512447012,0.03,127.27,127.24,6.86]
[1743512449195,0.03,127.27,127.26,20.0]
[1743512450199,0.03,127.27,127.26,27.8579]
[1743512450909,0.03,127.27,127.24,6.86]
[1743512451102,0.03,127.27,127.21,7.861]
[1743512451307,18.963972,127.27,127.24,6.86]
[1743512451499,26.37779411,127.27,127.21,7.861]
[1743512451707,6.1266,127.26,127.21,14.721]
[1743512452819,6.1266,127.26,127.21,7.861]
[1743512452994,6.1266,127.26,127.21,14.741]
[1743512454309,18.64964886,127.25,127.21,6.88]
[1743512454698,18.64964886,127.25,127.21,14.7409]
[1743512454898,6.1266,127.26,127.21,14.7409]
[1743512455108,18.64964886,127.25,127.21,6.88]
[1743512455309,26.06347097,127.25,127.21,6.88]
[1743512456325,18.64964886,127.25,127.21,14.7409]
[1743512456921,18.64964886,127.25,127.21,7.8609]
[1743512457720,0.03,127.27,127.21,7.8609]
[1743512457936,0.03,127.27,127.21,27.5134]
[1743512458525,0.03,127.27,127.24,20.0]
[1743512458724,0.03,127.27,127.25,6.88]
[1743512460422,0.03,127.27,127.26,7.8579]
[1743512462206,0.03,127.27,127.21,7.861]
[1743512462520,32.59067097,127.27,127.22,6.88]
[1743512462906,0.28432314,127.26,127.22,6.88]
[1743512463827,0.03,127.27,127.22,6.88]
[1743512464006,30.03,127.27,127.22,6.88]
[1743512464207,18.64964886,127.26,127.22,6.88]
[1743512464410,26.50764886,127.26,127.22,14.7403]
[1743512464922,18.64964886,127.26,127.22,14.7403]
[1743512466129,26.50764886,127.26,127.22,14.7403]
[1743512468830,7.8875,127.27,127.22,14.7403]
[1743512469723,0.03,127.27,127.22,34.3912]
[1743512470837,0.03,127.27,127.22,75.3315]
[1743512471521,0.03,127.27,127.25,20.0]
[1743512471721,0.03,127.27,127.26,6.88]
[1743512473036,0.03,127.27,127.26,14.7379]
[1743512474331,0.03,127.29,127.26,34.3827]
[1743512474834,0.03,127.29,127.27,6.88]
[1743512475037,0.03,127.29,127.28,7.8566]
[1743512476339,0.03,127.29,127.28,11.72139055]
[1743512476634,0.03,127.29,127.27,14.7371]
[1743512479439,0.03,127.29,127.27,18.62397304]
[1743512480451,0.03,127.29,127.27,3.88687304]
[1743512480740,0.03,127.29,127.26,6.88]
[1743512482253,0.03,127.29,127.26,10.74530869]
[1743512482535,0.03,127.29,127.27,7.8573]
[1743512487552,0.03,127.32,127.3,20.0]
[1743512487733,0.03,127.32,127.31,6.88]
[1743512488739,0.03,127.32,127.31,14.7348]
[1743512490150,0.03,127.33,127.31,15.01912314]
[1743512491733,0.03,127.35,127.31,34.65622314]
[1743512493768,0.03,127.35,127.34,20.0]
[1743512494849,30.03,127.35,127.34,20.0]
[1743512495555,30.03,127.35,127.34,27.8529]
[1743512496369,30.03,127.35,127.34,34.7129]
[1743512498244,0.03,127.35,127.34,34.7129]
[1743512498934,0.03,127.35,127.34,41.15939053]
[1743512499130,0.03,127.35,127.34,41.44371367]
[1743512499347,0.03,127.36,127.34,41.44371367]
[1743512500242,0.03,127.36,127.34,34.7129]
[1743512501051,0.03,127.36,127.34,14.7129]
[1743512503440,0.03,127.36,127.34,6.86]
[1743512505767,0.03,127.36,127.32,7.8542]
[1743512505967,0.03,127.36,127.34,6.86]
[1743512506347,30.03,127.36,127.34,6.86]
[1743512508259,37.8819,127.36,127.34,6.86]
[1743512508456,30.03,127.36,127.34,6.86]
[1743512509247,30.03,127.36,127.33,7.8535]
[1743512509448,30.03,127.36,127.34,6.84]
[1743512510860,0.03,127.36,127.34,6.84]
[1743512513871,30.03,127.36,127.34,6.84]
[1743512515171,45.8183,127.36,127.31,0.063]
[1743512515372,18.933972,127.33,127.31,0.063]
[1743512515672,34.03185733,127.32,127.31,0.063]
[1743512516263,26.63924886,127.32,127.31,0.063]
[1743512516569,18.64964886,127.35,127.31,0.063]
[1743512516775,28.01814886,127.35,127.31,0.063]
[1743512517186,35.41075733,127.35,127.31,0.063]
[1743512519059,16.76110847,127.35,127.31,0.063]
[1743512519470,9.3685,127.35,127.31,0.063]
[1743512521874,16.76110847,127.35,127.31,0.063]
[1743512522664,7.39260847,127.33,127.31,0.063]
[1743512522979,7.39260847,127.32,127.31,0.063]
[1743512523477,15.24680847,127.32,127.31,0.063]
[1743512524254,15.53113161,127.32,127.31,0.063]
[1743512524471,1.5738,127.3,127.26,6.923]
[1743512524670,7.39260847,127.29,127.26,0.063]
[1743512525566,7.8566,127.28,127.26,0.063]
[1743512525867,15.24900847,127.29,127.26,0.063]
[1743512526073,1.5738,127.3,127.26,0.063]
[1743512526074,16.82210847,127.3,127.26,0.063]
[1743512526476,9.4295,127.3,127.26,0.063]
[1743512526670,26.51134886,127.34,127.26,4.08877965]
[1743512526871,18.64964886,127.33,127.26,0.063]
[1743512527076,7.39260847,127.3,127.26,0.063]
[1743512527455,18.64964886,127.27,127.26,0.063]
[1743512527660,33.89955733,127.27,127.26,0.063]
[1743512527860,34.18388047,127.27,127.26,0.063]
[1743512531090,20.0,127.24,127.2,0.063]
[1743512531394,7.39260847,127.22,127.2,0.063]
[1743512531877,15.25300847,127.22,127.2,0.063]
[1743512532383,26.04225733,127.21,127.2,0.063]
[1743512533505,26.32658047,127.21,127.2,0.063]
[1743512533659,30.51338662,127.21,127.2,0.063]
[1743512533860,30.51338662,127.21,127.18,0.063]
[1743512533861,38.64964886,127.19,127.18,0.063]
[1743512534063,50.22906348,127.19,127.18,0.063]
[1743512534970,58.37558662,127.19,127.18,0.063]
[1743512535562,30.51338662,127.19,127.18,0.063]
[1743512538867,26.796172,127.19,127.18,0.063]
[1743512539085,30.51338662,127.19,127.18,0.063]
[1743512539782,38.37558662,127.19,127.18,0.063]
[1743512539969,30.51338662,127.19,127.18,0.063]
[1743512540167,1.5673,127.22,127.18,0.063]
[1743512540367,6.1123,127.23,127.18,0.063]
[1743512540570,11.86373776,127.25,127.18,0.063]
[1743512540989,11.57941462,127.24,127.18,0.063]
[1743512541869,11.57941462,127.23,127.18,0.063]
[1743512542387,11.57941462,127.23,127.18,7.9258]
[1743512543079,11.57941462,127.22,127.18,7.9258]
[1743512543271,11.57941462,127.22,127.18,0.063]
[1743512544688,18.64964886,127.21,127.18,0.063]
[1743512546488,30.22906348,127.21,127.18,0.063]
[1743512547190,11.57941462,127.21,127.18,0.063]
[1743512547392,11.57941462,127.23,127.18,0.063]
[1743512547575,18.64964886,127.22,127.18,0.063]
[1743512548193,0.03,127.24,127.18,0.063]
[1743512548391,18.64964886,127.23,127.18,0.063]
[1743512548573,30.22906348,127.23,127.18,0.063]
[1743512548775,11.57941462,127.22,127.18,0.063]
[1743512548994,7.861,127.21,127.18,0.063]
[1743512550297,19.43991462,127.22,127.18,0.063]
[1743512553001,11.57941462,127.22,127.18,0.063]
[1743512553403,19.43991462,127.22,127.18,0.063]
[1743512555803,15.26779275,127.22,127.18,0.063]
[1743512556303,15.29779275,127.22,127.18,0.063]
[1743512556684,7.40729275,127.2,127.18,0.063]
[1743512557100,7.40729275,127.19,127.18,0.063]
[1743512557298,26.05694161,127.19,127.18,0.063]
[1743512557483,26.34126475,127.19,127.18,0.063]
[1743512558906,34.20346475,127.19,127.18,0.063]
[1743512559816,38.38003317,127.19,127.18,0.063]
[1743512563907,19.44606117,127.19,127.18,0.063]
[1743512564105,11.61386117,127.22,127.18,0.063]
[1743512564312,18.64964886,127.21,127.18,0.063]
[1743512568597,11.61386117,127.22,127.18,0.063]
[1743512568801,18.67964886,127.22,127.18,0.063]
[1743512569916,30.26351003,127.22,127.18,0.063]
[1743512572221,30.26351003,127.22,127.19,6.88]
[1743512572222,0.03,127.22,127.19,6.88]
[1743512573008,0.03,127.22,127.2,7.8616]
[1743512579520,0.03,127.22,127.19,14.7419]
[1743512579921,0.03,127.22,127.19,6.88]
[1743512580833,0.03,127.22,127.18,7.9255]
[1743512582419,0.03,127.22,127.18,27.5826]
[1743512582619,0.03,127.22,127.21,20.0]
[1743512582821,0.03,127.22,127.21,26.86]
[1743512584128,0.03,127.22,127.21,41.133]
[1743512585938,0.0001,127.22,127.21,41.133]
[1743512587646,9.04647973,127.32,127.22,0.28432314]
[1743512587942,95.41127973,127.34,127.27,20.0]
[1743512588129,21.56447973,127.34,127.29,7.856]
[1743512589039,21.56447973,127.34,127.28,14.7164]
[1743512589855,25.711797,127.34,127.28,14.7164]
[1743512590222,25.711797,127.34,127.28,18.5632104]
[1743512593148,7.8532,127.34,127.28,18.5632104]
[1743512594257,39.72874586,127.35,127.28,38.2049104]
[1743512594428,28.17614886,127.35,127.28,38.2049104]
[1743512595326,26.53224886,127.35,127.28,38.2049104]
[1743512598150,18.67964886,127.35,127.28,38.2049104]
[1743512598460,26.53214886,127.35,127.28,38.2049104]
[1743512601631,18.67964886,127.35,127.28,38.2049104]
[1743512602141,0.03,127.35,127.31,20.0]
[1743512602648,0.03,127.35,127.32,6.86]
[1743512603367,19.434997,127.35,127.32,6.86]
[1743512603557,11.552597,127.34,127.32,6.86]
[1743512603870,19.406097,127.34,127.29,6.86]
[1743512604657,11.552597,127.33,127.28,18.5632104]
[1743512605249,18.64964886,127.33,127.28,18.5632104]
[1743512607263,26.50334886,127.33,127.28,18.5632104]
[1743512607437,18.64964886,127.33,127.28,18.5632104]
[1743512607849,11.582597,127.35,127.28,18.5632104]
[1743512608049,11.582597,127.35,127.28,38.2049104]
[1743512608360,19.434997,127.35,127.28,38.2049104]
[1743512608757,11.582597,127.35,127.28,38.2049104]
[1743512609663,26.07141447,127.35,127.28,38.2049104]
[1743512610147,33.92391447,127.35,127.28,38.2049104]
[1743512614165,26.07141447,127.35,127.28,38.2049104]
[1743512614371,33.92381447,127.35,127.28,38.2049104]
[1743512614955,26.07141447,127.35,127.28,38.2049104]
[1743512615167,18.67964886,127.35,127.28,38.2049104]
[1743512615560,26.53214886,127.35,127.28,38.2049104]
[1743512616560,7.39176561,127.34,127.28,11.7032104]
[1743512616742,7.39176561,127.33,127.28,18.5632104]
[1743512616949,0.28432314,127.34,127.28,18.5632104]
[1743512617250,18.64964886,127.33,127.28,18.5632104]
[1743512617767,7.8542,127.32,127.28,18.5632104]
[1743512618369,15.24596561,127.32,127.27,7.8569]
[1743512618570,15.24596561,127.32,127.27,6.86]
[1743512618764,7.39176561,127.29,127.25,6.86]
[1743512618970,7.39176561,127.28,127.24,0.063]
[1743512619148,7.39176561,127.29,127.24,0.063]
[1743512620068,0.28432314,127.27,127.24,0.063]
[1743512620251,7.39176561,127.26,127.24,0.063]
[1743512620661,7.39176561,127.25,127.24,0.063]
[1743512622079,15.25026561,127.25,127.24,0.063]
[1743512623659,7.8585,127.25,127.24,0.063]
[1743512625072,15.24996561,127.26,127.24,0.063]
[1743512625253,33.89961447,127.26,127.24,0.063]
[1743512626376,15.24996561,127.26,127.24,0.063]
[1743512626573,33.89961447,127.26,127.24,0.063]
[1743512628756,26.32573761,127.25,127.24,0.063]
[1743512628962,26.32573761,127.25,127.18,0.063]
[1743512629177,7.39176561,127.2,127.18,0.063]
[1743512629472,26.04141447,127.19,127.18,0.063]
[1743512630574,18.64964886,127.19,127.18,0.063]
[1743512632288,7.39176561,127.21,127.18,0.063]
[1743512632461,18.64964886,127.21,127.18,0.063]
[1743512632983,91.1213,127.22,127.18,0.063]
[1743512632984,18.64964886,127.22,127.18,0.063]
[1743512633164,18.64964886,127.22,127.18,6.923]
[1743512634774,33.90191447,127.22,127.18,6.923]
[1743512634962,9.03706561,127.25,127.19,7.8622]
[1743512635168,16.89566561,127.25,127.19,27.5178]
[1743512635568,9.03706561,127.25,127.19,27.5178]
[1743512636379,16.89556561,127.25,127.19,27.5178]
[1743512637082,9.03706561,127.25,127.19,27.5178]
[1743512637672,1.6453,127.25,127.19,27.5178]
[1743512639277,9.5039,127.25,127.19,27.5178]
[1743512639587,16.89566561,127.25,127.19,27.5178]
[1743512639891,16.89566561,127.25,127.19,7.8622]
[1743512640789,9.03706561,127.25,127.19,7.8622]
[1743512641187,1.6453,127.25,127.19,7.8622]
[1743512642493,9.03706561,127.25,127.19,7.8622]
[1743512642681,16.89556561,127.25,127.19,7.8622]
[1743512643192,16.89556561,127.25,127.2,6.86]
[1743512643591,26.50914886,127.24,127.2,6.86]
[1743512645676,33.90091447,127.24,127.2,6.86]
[1743512646797,26.50914886,127.24,127.2,6.86]
[1743512648176,18.64964886,127.24,127.2,14.7214]
[1743512648377,18.64964886,127.26,127.2,14.7214]
[1743512648690,26.04141447,127.26,127.2,14.7214]
[1743512648890,7.39176561,127.25,127.2,14.7214]
[1743512650996,26.50894886,127.24,127.2,6.86]
[1743512651198,7.39176561,127.22,127.18,0.063]
[1743512651398,26.04141447,127.22,127.2,0.063]
[1743512652590,7.861,127.21,127.2,0.063]
[1743512653787,15.25276561,127.21,127.2,0.063]
[1743512653986,34.18673761,127.21,127.2,0.063]
[1743512657006,15.10566561,127.23,127.2,0.063]
[1743512657206,8.14352314,127.24,127.2,0.063]
[1743512657425,26.32573761,127.24,127.2,0.063]
[1743512657600,34.18493761,127.24,127.2,0.063]
[1743512657796,7.39176561,127.23,127.2,0.063]
[1743512657999,7.39176561,127.22,127.2,0.063]
[1743512658401,15.25236561,127.22,127.2,0.063]
[1743512662218,33.90201447,127.22,127.2,0.063]
[1743512665710,26.32573761,127.21,127.2,0.063]
[1743512666806,34.18673761,127.21,127.2,0.063]
[1743512667613,7.39176561,127.23,127.2,0.063]
[1743512668602,26.04141447,127.24,127.2,0.063]
[1743512668996,33.90101447,127.24,127.2,0.063]
[1743512670319,26.04141447,127.23,127.2,0.063]
[1743512670501,7.39176561,127.22,127.2,0.063]
[1743512670918,7.861,127.21,127.2,0.063]
[1743512674222,15.25246561,127.22,127.2,0.063]
[1743512675228,26.04141447,127.21,127.2,0.063]
[1743512675723,26.32573761,127.21,127.2,0.063]
[1743512676315,34.18673761,127.21,127.2,0.063]
[1743512688913,64.18673761,127.21,127.2,0.063]
[1743512690033,64.18673761,127.21,127.18,0.063]